fUST/lending_fUST_20250204
["ID","MTS","AMOUNT","RATE_DAILY","PERIOD"]
[351579589,1738638647762,-500.0,0.00016575,2]
[351579590,1738638647773,-502.48924389,0.00016575,2]
[351579591,1738638647784,-501.92201831,0.00016575,2]
[351579592,1738638647793,-507.0558345,0.00016575,2]
[351579593,1738638647803,-505.43293167,0.00016575,2]
[351579594,1738638647812,-395.75672126,0.00016575,2]
[351579595,1738638647821,-500.0,0.00016575,2]
[351579596,1738638647836,-500.0,0.00016575,2]
[351579597,1738638647852,-502.72703324,0.00016575,2]
[351579598,1738638647862,-500.0,0.00016575,2]
[351579599,1738638647871,-544.23005665,0.00016575,2]
[351579600,1738638647880,-500.0,0.00016575,2]
[351579601,1738638647890,-507.74758515,0.00016575,2]
[351579602,1738638647899,-500.0,0.00016575,2]
[351579603,1738638647909,-502.35594509,0.00016575,2]
[351579604,1738638647919,-500.0,0.00016575,2]
[351579605,1738638647928,-501.01365762,0.00016575,2]
[351579606,1738638647938,-306.56195816,0.00016575,2]
[351579607,1738638647947,-378.696,0.00016575,2]
[351579608,1738638647956,-500.0,0.00016575,2]
[351579609,1738638647966,-503.58050324,0.00016575,2]
[351579610,1738638647976,-571.39189521,0.00016575,2]
[351579611,1738638647986,-514.54600934,0.00016575,2]
[351579612,1738638647997,-506.23417013,0.00016575,2]
[351579613,1738638648007,-506.05943776,0.00016575,2]
[351579614,1738638648016,-500.0,0.00016575,2]
[351579615,1738638648026,-585.12529013,0.00016575,2]
[351579616,1738638648035,-1138.91,0.00016575,2]
[351579617,1738638648045,-500.0,0.00016575,2]
[351579618,1738638648057,-505.52124431,0.00016575,2]
[351579619,1738638648067,-445.52520704,0.00016575,2]
[351579620,1738638648078,-500.0,0.00016575,2]
[351579621,1738638648089,-500.0,0.00016575,2]
[351579622,1738638648099,-500.0,0.00016575,2]
[351579623,1738638648108,-500.0,0.00016575,2]
[351579624,1738638648118,-1102.16,0.00016575,2]
[351579625,1738638648127,-501.75365398,0.00016575,2]
[351579626,1738638648137,-321.21723782,0.00016575,2]
[351579627,1738638648147,-503.19027022,0.00016575,2]
[351579628,1738638648157,-500.0,0.00016575,2]
[351579629,1738638648167,-500.0,0.00016575,2]
[351579630,1738638648176,-500.0,0.00016575,2]
[351579631,1738638648185,-500.0,0.00016575,2]
[351579632,1738638648195,-514.16207308,0.00016575,2]
[351579633,1738638648205,-500.0,0.00016575,2]
[351579634,1738638648214,-501.30350988,0.00016575,2]
[351579635,1738638648223,-501.09244464,0.00016575,2]
[351579636,1738638648232,-502.77229191,0.00016575,2]
[351579637,1738638648243,-500.0,0.00016575,2]
[351579638,1738638648252,-547.87103451,0.00016575,2]
[351579639,1738638648262,-509.23947558,0.00016575,2]
[351579640,1738638648272,-595.65875474,0.00016575,2]
[351579641,1738638648282,-500.0,0.00016575,2]
[351579642,1738638648291,-500.0,0.00016575,2]
[351579643,1738638648301,-500.0,0.00016575,2]
[351579644,1738638648310,-500.0,0.00016575,2]
[351579645,1738638648320,-506.15252132,0.00016575,2]
[351579646,1738638648329,-500.0,0.00016575,2]
[351579647,1738638648339,-500.0,0.00016575,2]
[351579648,1738638648348,-505.43,0.00016575,2]
[351579649,1738638648358,-500.0,0.00016575,2]
[351579650,1738638648367,-500.0,0.00016575,2]
[351579651,1738638648377,-635.48991678,0.00016575,2]
[351579652,1738638648387,-500.0,0.00016575,2]
[351579653,1738638648397,-500.0,0.00016575,2]
[351579654,1738638648407,-500.0,0.00016575,2]
[351579655,1738638648417,-500.0,0.00016575,2]
[351579656,1738638648534,-500.0,0.00016575,2]
[351579657,1738638648546,-500.0,0.00016575,2]
[351579658,1738638648557,-624.27817249,0.00016575,2]
[351579659,1738638648566,-550.22953124,0.00016575,2]
[351579660,1738638648576,-500.0,0.00016575,2]
[351579661,1738638648586,-500.0,0.00016575,2]
[351579662,1738638648596,-503.03572799,0.00016575,2]
[351579663,1738638648606,-527.24280699,0.00016575,2]
[351579664,1738638648616,-272.32219955,0.00016575,2]
[351579665,1738638648626,-500.0,0.00016575,2]
[351579666,1738638648636,-500.0,0.00016575,2]
[351579667,1738638648645,-502.90624184,0.00016575,2]
[351579668,1738638648656,-500.0,0.00016575,2]
[351579669,1738638648666,-505.2358516,0.00016575,2]
[351579670,1738638648675,-181.156472,0.00016575,2]
[351579671,1738638648689,-500.0,0.00016575,2]
[351579672,1738638648699,-959.97,0.00016575,2]
[351579673,1738638648708,-181.156472,0.00016575,2]
[351579674,1738638648718,-500.0,0.00016575,2]
[351579675,1738638648728,-503.64170723,0.00016575,2]
[351579676,1738638648738,-500.0,0.00016575,2]
[351579677,1738638648747,-502.80829912,0.00016575,2]
[351579678,1738638648758,-505.27644101,0.00016575,2]
[351579679,1738638648770,-500.0,0.00016575,2]
[351579680,1738638648779,-500.0,0.00016575,2]
[351579681,1738638648789,-500.0,0.00016575,2]
[351579682,1738638648799,-502.18187749,0.00016575,2]
[351579683,1738638648808,-503.64199588,0.00016575,2]
[351579684,1738638648818,-151.0,0.00016575,2]
[351579685,1738638648828,-865.11,0.00016575,2]
[351579686,1738638648838,-500.0,0.00016575,2]
[351579687,1738638648848,-500.0,0.00016575,2]
[351579688,1738638648857,-502.74726053,0.00016575,2]
[351579689,1738638648868,-500.0,0.00016575,2]
[351579690,1738638648877,-500.0,0.00016575,2]
[351579691,1738638648887,-500.0,0.00016575,2]
[351579692,1738638648898,-4648.26,0.00016575,2]
[351579693,1738638648907,-500.0,0.00016575,2]
[351579694,1738638648917,-502.46872153,0.00016575,2]
[351579695,1738638648927,-500.0,0.00016575,2]
[351579696,1738638648937,-513.4052818,0.00016575,2]
[351579697,1738638648947,-500.0,0.00016575,2]
[351579698,1738638648958,-500.0,0.00016575,2]
[351579699,1738638648969,-500.0,0.00016575,2]
[351579700,1738638648979,-500.0,0.00016575,2]
[351579701,1738638648990,-502.73434885,0.00016575,2]
[351579702,1738638649001,-405.32832435,0.00016575,2]
[351579703,1738638649192,-471.03760589,0.00016438,2]
[351579704,1738638649205,-28.96239411,0.00016438,2]
[351579705,1738638649215,-94.67167565,0.00016575,2]
[351579706,1738638649224,-151.0,0.00016575,2]
[351579707,1738638649234,-151.0,0.00016575,2]
[351579708,1738638649244,-151.0,0.00016575,2]
[351579709,1738638649253,-172.95100353,0.00016575,2]
[351579710,1738638649265,-327.04899647,0.00016575,2]
[351579711,1738638649274,-151.0,0.00016575,2]
[351579712,1738638649284,-459.67138182,0.00016575,2]
[351579713,1738638649297,-40.32861818,0.00016575,2]
[351579714,1738638649307,-500.0,0.00016575,2]
[351579715,1738638649317,-504.04820519,0.00016575,2]
[351579716,1738638649327,-500.0,0.00016575,2]
[351579717,1738638649338,-500.0,0.00016575,2]
[351579718,1738638649348,-500.0,0.00016575,2]
[351579719,1738638649358,-509.19293436,0.00016575,2]
[351579720,1738638649368,-500.0,0.00016575,2]
[351579721,1738638649378,-500.0,0.00016575,2]
[351579722,1738638649388,-500.0,0.00016575,2]
[351579723,1738638649399,-500.0,0.00016575,2]
[351579724,1738638649408,-24.18360704,0.00016575,2]
[351579725,1738638649576,-171.280732,0.00015526,2]
[351579726,1738638649586,-500.0,0.00016438,2]
[351579727,1738638649596,-502.05271851,0.00016438,2]
[351579728,1738638649606,-500.0,0.00016438,2]
[351579729,1738638649616,-153.0,0.00016443,2]
[351579730,1738638649626,-153.0,0.00016443,2]
[351579731,1738638649635,-153.0,0.00016443,2]
[351579732,1738638649645,-153.0,0.00016443,2]
[351579733,1738638649655,-153.0,0.00016443,2]
[351579734,1738638649665,-153.0,0.00016443,2]
[351579735,1738638649675,-153.0,0.00016443,2]
[351579736,1738638649686,-153.0,0.00016443,2]
[351579737,1738638649696,-153.0,0.00016443,2]
[351579738,1738638649706,-405.85439047,0.00016575,2]
[351579739,1738638649716,-840.39,0.00016575,2]
[351579740,1738638649727,-500.0,0.00016575,2]
[351579741,1738638649738,-151.0,0.00016575,2]
[351579742,1738638649748,-183.526701,0.00016575,2]
[351579743,1738638649759,-500.0,0.00016575,2]
[351579744,1738638649769,-500.0,0.00016575,2]
[351579745,1738638649780,-500.0,0.00016575,2]
[351579746,1738638649790,-500.0,0.00016575,2]
[351579747,1738638649799,-500.0,0.00016575,2]
[351579748,1738638649808,-504.1575931,0.00016575,2]
[351579749,1738638649817,-500.0,0.00016575,2]
[351579750,1738638649826,-500.0,0.00016575,2]
[351579751,1738638649836,-500.0,0.00016575,2]
[351579752,1738638649845,-500.0,0.00016575,2]
[351579753,1738638649854,-151.0,0.00016575,2]
[351579754,1738638649864,-159.298732,0.00016575,2]
[351579755,1738638649874,-586.46444235,0.00016575,2]
[351579756,1738638649883,-500.0,0.00016575,2]
[351579757,1738638649894,-501.26461619,0.00016575,2]
[351579758,1738638649903,-501.37526044,0.00016575,2]
[351579759,1738638649913,-500.0,0.00016575,2]
[351579760,1738638649923,-500.0,0.00016575,2]
[351579761,1738638649932,-515.88896787,0.00016575,2]
[351579762,1738638649941,-500.0,0.00016575,2]
[351579763,1738638649951,-500.0,0.00016575,2]
[351579764,1738638649960,-817.41,0.00016575,2]
[351579765,1738638649971,-510.58115814,0.00016575,2]
[351579766,1738638649980,-500.0,0.00016575,2]
[351579767,1738638649990,-484.42603316,0.00016575,2]
[351579768,1738638650000,-247.27321792,0.00016575,2]
[351579769,1738638650010,-500.0,0.00016575,2]
[351579770,1738638650020,-500.0,0.00016575,2]
[351579771,1738638650030,-502.27895175,0.00016575,2]
[351579772,1738638650040,-500.0,0.00016575,2]
[351579773,1738638650050,-165.51770334,0.00016575,2]
[351579774,1738638650059,-516.08,0.00016575,2]
[351579775,1738638650069,-504.06265539,0.00016575,2]
[351579776,1738638650079,-500.0,0.00016575,2]
[351579777,1738638650088,-500.0,0.00016575,2]
[351579778,1738638650099,-504.64192217,0.00016575,2]
[351579779,1738638650108,-525.27,0.00016575,2]
[351579780,1738638650117,-882.12,0.00016575,2]
[351579781,1738638650127,-396.941338,0.00016575,2]
[351579782,1738638650137,-500.0,0.00016575,2]
[351579783,1738638650147,-396.941338,0.00016575,2]
[351579784,1738638650156,-396.941338,0.00016575,2]
[351579785,1738638650166,-396.941338,0.00016575,2]
[351579786,1738638650177,-500.0,0.00016575,2]
[351579787,1738638650186,-1387.04,0.00016575,2]
[351579788,1738638650196,-161.9280022,0.00016575,2]
[351579789,1738638650214,-153.0,0.00016443,2]
[351579790,1738638650224,-338.0719978,0.00016575,2]
[351579791,1738638650233,-500.0,0.00016575,2]
[351579792,1738638650244,-500.0,0.00016575,2]
[351579793,1738638650253,-500.0,0.00016575,2]
[351579794,1738638650263,-500.0,0.00016575,2]
[351579795,1738638650274,-511.325914,0.00016575,2]
[351579796,1738638650283,-500.0,0.00016575,2]
[351579797,1738638650294,-500.0,0.00016575,2]
[351579798,1738638650303,-500.0,0.00016575,2]
[351579799,1738638650312,-509.05520609,0.00016575,2]
[351579800,1738638650322,-500.0,0.00016575,2]
[351579801,1738638650331,-500.0,0.00016575,2]
[351579802,1738638650341,-500.0,0.00016575,2]
[351579803,1738638650350,-8464.67,0.00016575,2]
[351579804,1738638650359,-511.90087153,0.00016575,2]
[351579805,1738638650369,-506.0676836,0.00016575,2]
[351579806,1738638650378,-500.0,0.00016575,2]
[351579807,1738638650387,-1771.56,0.00016575,2]
[351579808,1738638650397,-500.0,0.00016575,2]
[351579809,1738638650406,-1941.69,0.00016575,2]
[351579810,1738638650415,-520.59352396,0.00016575,2]
[351579811,1738638650425,-512.13457925,0.00016575,2]
[351579812,1738638650434,-500.0,0.00016575,2]
[351579813,1738638650445,-500.0,0.00016575,2]
[351579814,1738638650455,-500.0,0.00016575,2]
[351579815,1738638650465,-1144.08,0.00016575,2]
[351579816,1738638650475,-1037.14,0.00016575,2]
[351579817,1738638650484,-500.0,0.00016575,2]
[351579818,1738638650494,-792.78,0.00016575,2]
[351579819,1738638650503,-500.0,0.00016575,2]
[351579820,1738638650513,-509.88317775,0.00016575,2]
[351579821,1738638650523,-151.0,0.00016575,2]
[351579822,1738638650532,-151.0,0.00016575,2]
[351579823,1738638650541,-3461.64139739,0.00016575,2]
[351579828,1738638965639,200.66,0.00015,2]
[351579842,1738639211183,187.27277694,0.00015012,2]
[351579845,1738639409963,200.0,0.00020453,120]
[351579846,1738639465160,262.794004,0.00013973,2]
[351579848,1738639585208,913.71953834,0.00015012,2]
[351579849,1738639593536,4871.99697579,0.00015012,2]
[351579909,1738639831892,-171.280733,0.00015205,2]
[351579911,1738639831902,-160.0,0.00015771,3]
[351579912,1738639831911,-160.0,0.00015851,4]
[351579914,1738639831921,-3391.78777653,0.00015872,2]
[351579915,1738639831930,-160.0,0.00015932,5]
[351579916,1738639831940,-700.0,0.00015972,2]
[351579917,1738639831950,-160.0,0.00016012,6]
[351579918,1738639831960,-160.0,0.00016093,7]
[351579919,1738639831970,-160.0,0.00016173,8]
[351579920,1738639831979,-160.0,0.00016254,9]
[351579921,1738639831989,-637.78894933,0.00016323,2]
[351579922,1738639831999,-160.0,0.00016334,10]
[351579923,1738639832008,-183.28173978,0.00016338,2]
[351579924,1738639832154,-300.0,0.00016399,2]
[351579925,1738639832166,-186.0,0.000164,3]
[351579926,1738639832176,-186.0,0.000164,2]
[351579927,1738639832186,-186.0,0.000164,2]
[351579928,1738639832195,-5416.4360372,0.000164,2]
[351579929,1738639832205,-160.0,0.00016415,11]
[351579930,1738639832215,-153.0,0.00016426,2]
[351579931,1738639832225,-153.0,0.00016426,2]
[351579932,1738639832235,-153.0,0.00016426,2]
[351579933,1738639832244,-153.0,0.00016426,2]
[351579934,1738639832253,-153.0,0.00016426,2]
[351579935,1738639832263,-153.0,0.00016426,2]
[351579936,1738639832272,-153.0,0.00016426,2]
[351579937,1738639832281,-153.0,0.00016426,2]
[351579938,1738639832291,-153.0,0.00016426,2]
[351579939,1738639832300,-153.0,0.00016426,2]
[351579940,1738639832309,-153.0,0.00016426,2]
[351579941,1738639832319,-153.0,0.00016426,2]
[351579942,1738639832329,-153.0,0.00016426,2]
[351579943,1738639832338,-153.0,0.00016426,2]
[351579944,1738639832348,-153.0,0.00016426,2]
[351579945,1738639832358,-153.0,0.00016426,2]
[351579946,1738639832368,-153.0,0.00016426,2]
[351579947,1738639832378,-153.0,0.00016426,2]
[351579948,1738639832388,-153.0,0.00016426,2]
[351579949,1738639832397,-153.0,0.00016426,2]
[351579950,1738639832406,-153.0,0.00016426,2]
[351579951,1738639832415,-153.0,0.00016426,2]
[351579952,1738639832424,-153.0,0.00016426,2]
[351579953,1738639832434,-153.0,0.00016426,2]
[351579954,1738639832444,-153.0,0.00016426,2]
[351579955,1738639832456,-153.0,0.00016426,2]
[351579956,1738639832465,-153.0,0.00016426,2]
[351579957,1738639832475,-153.0,0.00016426,2]
[351579958,1738639832486,-153.0,0.00016426,2]
[351579959,1738639832495,-153.0,0.00016426,2]
[351579960,1738639832504,-153.0,0.00016426,2]
[351579961,1738639832513,-153.0,0.00016426,2]
[351579962,1738639832522,-153.0,0.00016426,2]
[351579963,1738639832532,-153.0,0.00016426,2]
[351579964,1738639832541,-153.0,0.00016426,2]
[351579965,1738639832550,-153.0,0.00016426,2]
[351579966,1738639832559,-13255.3373504,0.00016428,2]
[351579967,1738639832569,-500.0,0.00016437,2]
[351579968,1738639832578,-500.0,0.00016437,2]
[351579969,1738639832587,-500.0,0.00016437,2]
[351579970,1738639832597,-500.0,0.00016437,2]
[351579971,1738639832606,-500.0,0.00016437,2]
[351579972,1738639832615,-500.0,0.00016437,2]
[351579973,1738639832624,-518.94305429,0.00016437,2]
[351579974,1738639832634,-360.14653309,0.00016437,2]
[351579975,1738639832643,-500.0,0.00016437,2]
[351579976,1738639832652,-500.0,0.00016437,2]
[351579977,1738639832662,-500.0,0.00016437,2]
[351579978,1738639832671,-500.0,0.00016437,2]
[351579979,1738639832681,-500.0,0.00016437,2]
[351579980,1738639832690,-500.0,0.00016437,2]
[351579981,1738639832700,-500.0,0.00016437,2]
[351579982,1738639832709,-500.0,0.00016437,2]
[351579983,1738639832719,-500.0,0.00016437,2]
[351579984,1738639832728,-500.0,0.00016437,2]
[351579985,1738639832738,-500.0,0.00016437,2]
[351579986,1738639832747,-500.0,0.00016437,2]
[351579987,1738639832757,-500.0,0.00016437,2]
[351579988,1738639832766,-500.0,0.00016437,2]
[351579989,1738639832775,-587.99547062,0.00016437,2]
[351579990,1738639832785,-426.40539307,0.00016437,2]
[351579991,1738639832794,-500.0,0.00016437,2]
[351579992,1738639832804,-500.0,0.00016437,2]
[351579993,1738639832813,-500.0,0.00016437,2]
[351579994,1738639832823,-219.32968898,0.00016437,2]
[351579995,1738639832832,-500.0,0.00016437,2]
[351579996,1738639832841,-500.0,0.00016437,2]
[351579997,1738639832852,-500.0,0.00016437,2]
[351579998,1738639832862,-500.0,0.00016437,2]
[351579999,1738639832872,-500.0,0.00016437,2]
[351580000,1738639832881,-500.0,0.00016437,2]
[351580001,1738639832891,-381.01734403,0.00016437,2]
[351580002,1738639832900,-376.57624286,0.00016437,2]
[351580003,1738639832910,-500.0,0.00016437,2]
[351580004,1738639832920,-500.0,0.00016437,2]
[351580005,1738639832929,-500.0,0.00016437,2]
[351580006,1738639832939,-500.0,0.00016437,2]
[351580007,1738639832949,-500.0,0.00016437,2]
[351580008,1738639832959,-500.0,0.00016437,2]
[351580009,1738639832968,-500.0,0.00016437,2]
[351580010,1738639832978,-500.0,0.00016437,2]
[351580011,1738639832987,-500.0,0.00016437,2]
[351580012,1738639832997,-500.0,0.00016437,2]
[351580013,1738639833007,-500.0,0.00016437,2]
[351580014,1738639833016,-500.0,0.00016437,2]
[351580015,1738639833028,-500.0,0.00016437,2]
[351580016,1738639833038,-500.0,0.00016437,2]
[351580017,1738639833047,-500.0,0.00016437,2]
[351580018,1738639833057,-500.0,0.00016437,2]
[351580019,1738639833066,-500.0,0.00016437,2]
[351580020,1738639833076,-500.0,0.00016437,2]
[351580021,1738639833091,-500.0,0.00016437,2]
[351580022,1738639833100,-500.0,0.00016437,2]
[351580023,1738639833109,-500.0,0.00016437,2]
[351580024,1738639833119,-500.0,0.00016437,2]
[351580025,1738639833129,-500.0,0.00016437,2]
[351580026,1738639833139,-500.0,0.00016437,2]
[351580027,1738639833148,-500.0,0.00016437,2]
[351580028,1738639833158,-500.0,0.00016437,2]
[351580029,1738639833168,-500.0,0.00016437,2]
[351580030,1738639833178,-500.0,0.00016437,2]
[351580031,1738639833187,-242.41856148,0.00016437,2]
[351580032,1738639833197,-500.0,0.00016437,2]
[351580033,1738639833207,-500.0,0.00016437,2]
[351580034,1738639833218,-500.0,0.00016437,2]
[351580035,1738639833228,-500.0,0.00016437,2]
[351580036,1738639833237,-500.0,0.00016437,2]
[351580037,1738639833247,-500.0,0.00016437,2]
[351580038,1738639833256,-500.0,0.00016437,2]
[351580039,1738639833266,-500.0,0.00016437,2]
[351580040,1738639833275,-500.0,0.00016437,2]
[351580041,1738639833285,-400.0,0.00016437,2]
[351580042,1738639833295,-500.0,0.00016437,2]
[351580043,1738639833304,-500.0,0.00016437,2]
[351580044,1738639833313,-499.0,0.00016437,2]
[351580045,1738639833323,-151.0,0.00016438,2]
[351580046,1738639833332,-502.67862467,0.00016438,2]
[351580047,1738639833342,-154.466561,0.00016438,2]
[351580048,1738639833351,-500.0,0.00016438,2]
[351580049,1738639833360,-500.0,0.00016438,2]
[351580050,1738639833370,-647.70188224,0.00016438,2]
[351580051,1738639833379,-291.9793999,0.00016438,2]
[351580052,1738639833389,-501.41595584,0.00016438,2]
[351580053,1738639833398,-151.0,0.00016438,2]
[351580054,1738639833407,-500.0,0.00016438,2]
[351580055,1738639833417,-499.92430052,0.00016438,2]
[351580056,1738639833427,-450.68598902,0.00016438,2]
[351580057,1738639833436,-500.0,0.00016438,2]
[351580058,1738639833445,-269.30526095,0.00016438,2]
[351580059,1738639833456,-505.16621407,0.00016438,2]
[351580060,1738639833466,-504.34470114,0.00016438,2]
[351580061,1738639833476,-503.54438385,0.00016438,2]
[351580062,1738639833486,-512.42628162,0.00016438,2]
[351580063,1738639833496,-500.0,0.00016438,2]
[351580064,1738639833505,-500.0,0.00016438,2]
[351580065,1738639833515,-507.45523682,0.00016438,2]
[351580066,1738639833525,-500.0,0.00016438,2]
[351580067,1738639833535,-500.0,0.00016438,2]
[351580068,1738639833544,-500.0,0.00016438,2]
[351580069,1738639833554,-500.0,0.00016438,2]
[351580070,1738639833563,-504.46276198,0.00016438,2]
[351580071,1738639833573,-501.78556911,0.00016438,2]
[351580072,1738639833583,-500.0,0.00016438,2]
[351580073,1738639833592,-500.0,0.00016438,2]
[351580074,1738639833602,-558.56531238,0.00016438,2]
[351580075,1738639833611,-501.19181129,0.00016438,2]
[351580076,1738639833621,-500.0,0.00016438,2]
[351580077,1738639833631,-500.0,0.00016438,2]
[351580078,1738639833640,-501.62185845,0.00016438,2]
[351580079,1738639833650,-501.94478288,0.00016438,2]
[351580080,1738639833660,-503.78172879,0.00016438,2]
[351580081,1738639833670,-252.96173036,0.00016438,2]
[351580082,1738639833680,-500.0,0.00016438,2]
[351580083,1738639833690,-501.37886716,0.00016438,2]
[351580084,1738639833700,-500.0,0.00016438,2]
[351580085,1738639833710,-500.0,0.00016438,2]
[351580086,1738639833720,-500.0,0.00016438,2]
[351580087,1738639833730,-500.0,0.00016438,2]
[351580088,1738639833739,-500.0,0.00016438,2]
[351580089,1738639833750,-500.0,0.00016438,2]
[351580090,1738639833760,-500.0,0.00016438,2]
[351580091,1738639833770,-500.0,0.00016438,2]
[351580092,1738639833780,-502.77089488,0.00016438,2]
[351580093,1738639833790,-501.84817614,0.00016438,2]
[351580094,1738639833799,-500.0,0.00016438,2]
[351580095,1738639833810,-500.0,0.00016438,2]
[351580096,1738639833820,-500.0,0.00016438,2]
[351580097,1738639833829,-514.63598522,0.00016438,2]
[351580098,1738639833839,-500.0,0.00016438,2]
[351580099,1738639833848,-500.0,0.00016438,2]
[351580100,1738639833858,-340.41468055,0.00016438,2]
[351580101,1738639833868,-201.17176521,0.00016438,2]
[351580102,1738639833879,-500.0,0.00016438,2]
[351580103,1738639833889,-502.10667941,0.00016438,2]
[351580104,1738639833898,-500.0,0.00016438,2]
[351580105,1738639833909,-500.0,0.00016438,2]
[351580106,1738639833919,-500.0,0.00016438,2]
[351580107,1738639833928,-500.0,0.00016438,2]
[351580108,1738639833938,-512.78461785,0.00016438,2]
[351580109,1738639833949,-500.0,0.00016438,2]
[351580110,1738639833959,-500.0,0.00016438,2]
[351580111,1738639833968,-492.11370767,0.00016438,2]
[351580112,1738639833989,-15.7002044,0.00016438,2]
[351580113,1738639833999,-505.69501266,0.00016438,2]
[351580114,1738639834009,-500.0,0.00016438,2]
[351580115,1738639834018,-34.69151981,0.00016438,2]
[351580116,1738639834030,-304.125,0.00016438,2]
[351580117,1738639834042,-161.18348019,0.00016438,2]
[351580118,1738639834052,-500.0,0.00016438,2]
[351580119,1738639834061,-505.56769788,0.00016438,2]
[351580120,1738639834071,-33.24882393,0.00016438,2]
[351580121,1738639834094,-470.21723855,0.00016438,2]
[351580122,1738639834104,-216.87294185,0.00016438,2]
[351580123,1738639834116,-283.12705815,0.00016438,2]
[351580124,1738639834127,-507.18089781,0.00016438,2]
[351580125,1738639834136,-500.0,0.00016438,2]
[351580126,1738639834146,-500.0,0.00016438,2]
[351580127,1738639834156,-500.61293467,0.00016438,2]
[351580128,1738639834166,-500.0,0.00016438,2]
[351580129,1738639834176,-508.07441865,0.00016438,2]
[351580130,1738639834186,-504.38163193,0.00016438,2]
[351580131,1738639834195,-500.0,0.00016438,2]
[351580132,1738639834206,-505.76557536,0.00016438,2]
[351580133,1738639834216,-500.0,0.00016438,2]
[351580134,1738639834225,-500.0,0.00016438,2]
[351580135,1738639834235,-502.00482231,0.00016438,2]
[351580136,1738639834244,-500.0,0.00016438,2]
[351580137,1738639834254,-505.66197187,0.00016438,2]
[351580138,1738639834263,-502.29755516,0.00016438,2]
[351580139,1738639834273,-500.0,0.00016438,2]
[351580140,1738639834283,-500.0,0.00016438,2]
[351580141,1738639834292,-500.0,0.00016438,2]
[351580142,1738639834302,-469.84780891,0.00016438,2]
[351580143,1738639834311,-500.0,0.00016438,2]
[351580144,1738639834321,-503.19745152,0.00016438,2]
[351580145,1738639834330,-500.0,0.00016438,2]
[351580146,1738639834340,-500.0,0.00016438,2]
[351580147,1738639834350,-500.0,0.00016438,2]
[351580148,1738639834360,-505.55913376,0.00016438,2]
[351580149,1738639834369,-507.16076065,0.00016438,2]
[351580150,1738639834378,-500.0,0.00016438,2]
[351580151,1738639834388,-312.02886035,0.00016438,2]
[351580152,1738639834397,-500.0,0.00016438,2]
[351580153,1738639834407,-500.0,0.00016438,2]
[351580154,1738639834417,-500.0,0.00016438,2]
[351580155,1738639834427,-500.0,0.00016438,2]
[351580156,1738639834436,-500.0,0.00016438,2]
[351580157,1738639834446,-604.33,0.00016438,2]
[351580158,1738639834457,-500.0,0.00016438,2]
[351580159,1738639834466,-500.0,0.00016438,2]
[351580160,1738639834476,-203.14332532,0.00016438,2]
[351580161,1738639834487,-500.0,0.00016438,2]
[351580162,1738639834496,-500.0,0.00016438,2]
[351580163,1738639834505,-500.0,0.00016438,2]
[351580164,1738639834515,-505.3386218,0.00016438,2]
[351580165,1738639834524,-343.5688363,0.00016438,2]
[351580166,1738639834534,-500.0,0.00016438,2]
[351580167,1738639834543,-500.0,0.00016438,2]
[351580168,1738639834552,-500.0,0.00016438,2]
[351580169,1738639834561,-572.19,0.00016438,2]